bitfinex-derivatives/quotes_SOLF0:USTF0_20241231
["timestamp","ask_amount","ask_price","bid_price","bid_amount"]
[1735656838358,2.5345,197.52,197.48,2.5349]
[1735656840159,2.5342,197.54,197.5,2.5346]
[1735656840364,12.30741857,197.57,197.47,1.533]
[1735656840760,2.5341,197.56,197.47,1.533]
[1735656841063,12.30741857,197.57,197.47,1.533]
[1735656841361,2.5345,197.53,197.49,2.5349]
[1735656842258,2.5345,197.52,197.48,2.535]
[1735656842455,12.30741857,197.54,197.46,2.88387621]
[1735656842661,12.30741857,197.48,197.42,1.5139]
[1735656842861,2.5354,197.46,197.42,2.5358]
[1735656843254,12.30741857,197.45,197.4,42.34490897]
[1735656843461,2.5356,197.44,197.4,2.5359]
[1735656843663,12.30741857,197.45,197.37,3.0154]
[1735656844063,2.5356,197.44,197.4,2.536]
[1735656844963,2.5356,197.44,197.41,2.5359]
[1735656845266,12.30741857,197.45,197.41,2.5359]
[1735656845462,12.30741857,197.45,197.42,2.5358]
[1735656845665,12.30741857,197.48,197.42,2.5358]
[1735656846166,2.5353,197.46,197.37,3.0154]
[1735656846564,12.30741857,197.48,197.37,3.0154]
[1735656846762,2.5357,197.44,197.37,3.0154]
[1735656847166,2.5357,197.44,197.4,2.5359]
[1735656847469,12.30741857,197.47,197.37,3.0154]
[1735656847664,2.5357,197.43,197.37,3.0154]
[1735656847873,15.66741857,197.44,197.31,294.00082244]
[1735656848172,2.5363,197.39,197.31,298.96672244]
[1735656848366,2.5363,197.39,197.31,291.9659]
[1735656848671,2.5363,197.39,197.33,2.5369]
[1735656848872,2.5363,197.39,197.31,291.9659]
[1735656849569,2.5363,197.39,197.31,288.6059]
[1735656850170,12.30741857,197.41,197.31,288.6059]
[1735656850374,2.5361,197.4,197.35,2.5367]
[1735656851771,12.30741857,197.41,197.35,2.5367]
[1735656851974,2.5362,197.39,197.35,2.5367]
[1735656852775,12.30741857,197.41,197.31,1.6059]
[1735656853269,12.30741857,197.38,197.31,1.6059]
[1735656853474,2.5367,197.35,197.31,4.1431]
[1735656853667,12.30741857,197.35,197.28,78.55031245]
[1735656854469,12.30741857,197.38,197.29,2.5374]
[1735656854470,2.537,197.33,197.29,2.5374]
[1735656854772,2.537,197.33,197.28,78.55031245]
[1735656855169,2.537,197.33,197.29,2.5374]
[1735656855477,2.5371,197.32,197.28,78.55031245]
[1735656855774,2.5371,197.32,197.28,81.08781245]
[1735656855975,2.5375,197.29,197.21,3.36]
[1735656856275,2.5375,197.29,197.2,6.4113]
[1735656856472,2.5375,197.29,197.25,2.5379]
[1735656856672,2.5376,197.28,197.2,293.4113]
[1735656857070,12.30741857,197.32,197.2,290.0513]
[1735656857372,12.30741857,197.32,197.2,293.4113]
[1735656857570,12.30741857,197.29,197.23,2.5381]
[1735656858175,12.30741857,197.29,197.22,2.5384]
[1735656858676,2.538,197.25,197.22,2.5384]
[1735656859373,2.538,197.26,197.22,2.5384]
[1735656859974,2.5376,197.28,197.2,3.0513]
[1735656860472,2.5373,197.3,197.27,2.5377]
[1735656860673,12.30741857,197.32,197.27,2.5377]
[1735656861069,2.5371,197.33,197.29,2.5374]
[1735656861273,12.30741857,197.32,197.21,299.30741857]
[1735656861978,12.30741857,197.32,197.22,3.36]
[1735656862275,2.5372,197.32,197.25,2.5379]
[1735656862574,2.5372,197.32,197.22,3.36]
[1735656862879,2.5372,197.31,197.27,2.5376]
[1735656865176,2.5371,197.32,197.28,2.5375]
[1735656865376,15.66741857,197.35,197.22,3.36]
[1735656865581,12.30741857,197.35,197.22,3.36]
[1735656865774,2.537,197.33,197.3,2.5373]
[1735656865970,2.537,197.33,197.22,3.36]
[1735656865971,12.30741857,197.31,197.1,287.0]
[1735656866177,12.30741857,197.24,197.1,12.30741857]
[1735656866381,12.30741857,197.24,197.11,1.4669]
[1735656866871,3.36,197.25,197.13,12.30741857]
[1735656867074,3.36,197.25,197.14,1.5232]
[1735656867274,12.30741857,197.27,197.15,3.36]
[1735656867578,2.538,197.26,197.15,4.9015]
[1735656868578,12.30741857,197.27,197.15,291.9015]
[1735656868780,2.5377,197.28,197.16,12.30741857]
[1735656869079,2.5377,197.28,197.23,2.5382]
[1735656869279,1.5068,197.36,197.2,3.36]
[1735656869480,12.30741857,197.33,197.2,3.36]
[1735656869682,3.36,197.35,197.2,3.36]
[1735656869683,12.30741857,197.3,197.2,4.9338]
[1735656869982,2.5375,197.29,197.2,4.9338]
[1735656871581,2.5375,197.29,197.24,2.538]
[1735656872681,2.5375,197.29,197.25,2.538]
[1735656872883,3.36,197.32,197.2,291.9338]
[1735656873379,5.8972,197.32,197.27,2.5376]
[1735656873581,3.36,197.32,197.2,291.9338]
[1735656873884,12.30741857,197.36,197.32,2.537]
[1735656874081,12.30741857,197.39,197.26,3.36]
[1735656874282,12.30741857,197.39,197.26,290.36]
[1735656875084,2.5364,197.38,197.33,2.5368]
[1735656875286,12.30741857,197.39,197.26,290.36]
[1735656875678,2.5364,197.38,197.26,290.36]
[1735656876282,2.5368,197.35,197.26,290.36]
[1735656876482,12.30741857,197.36,197.26,290.36]
[1735656876687,12.30741857,197.33,197.27,2.5377]
[1735656876893,2.5372,197.31,197.27,2.5377]
[1735656878085,12.30741857,197.33,197.23,290.0703]
[1735656878285,2.5371,197.32,197.28,2.5376]
[1735656879080,12.30741857,197.33,197.28,2.5375]
[1735656879589,2.5372,197.32,197.28,2.5375]
[1735656879789,12.30741857,197.33,197.23,3.0703]
[1735656879986,12.30741857,197.33,197.27,2.5377]
[1735656880191,2.5373,197.31,197.23,3.0703]
[1735656881890,2.5373,197.31,197.26,2.5377]
[1735656882194,3.36,197.34,197.23,3.0703]
[1735656882592,2.5369,197.33,197.23,3.0703]
[1735656882987,12.30741857,197.35,197.32,2.5371]
[1735656883189,12.30741857,197.35,197.16,27.8357218]
[1735656883390,12.30741857,197.27,197.16,27.8357218]
[1735656883694,2.5385,197.21,197.17,27.8357218]
[1735656883990,3.36,197.25,197.17,27.8357218]
[1735656884190,3.36,197.26,197.17,27.8357218]
[1735656884697,3.36,197.26,197.14,300.89541857]
[1735656885196,15.66741857,197.28,197.14,300.89541857]
[1735656885490,15.66741857,197.28,197.23,2.5382]
[1735656885491,5.8976,197.28,197.23,2.5382]
[1735656885691,3.36,197.28,197.23,2.5382]
[1735656885990,2.5368,197.34,197.2,299.30741857]
[1735656886189,3.36,197.38,197.23,12.30741857]
[1735656886494,15.66741857,197.38,197.24,4.8279]
[1735656886989,12.30741857,197.35,197.24,291.8279]
[1735656888387,2.5372,197.31,197.24,291.8279]
[1735656888594,15.66741857,197.38,197.24,291.8279]
[1735656888782,12.30741857,197.38,197.26,12.30741857]
[1735656888987,12.30741857,197.38,197.33,2.5369]
[1735656889189,2.5362,197.39,197.26,299.30741857]
[1735656889596,22.57925437,197.45,197.24,4.8279]
[1735656889597,21.06035437,197.45,197.32,299.30741857]
[1735656889894,21.06035437,197.45,197.35,299.30741857]
[1735656890095,12.30741857,197.49,197.38,299.30741857]
[1735656890394,12.30741857,197.49,197.39,3.36]
[1735656890591,2.5347,197.51,197.39,290.36]
[1735656891297,2.5348,197.5,197.39,290.36]
[1735656891595,15.66741857,197.52,197.44,2.5355]
[1735656891991,2.5347,197.51,197.44,2.5355]
[1735656893191,3.36,197.52,197.39,290.36]
[1735656893396,2.5345,197.53,197.46,2.5352]
[1735656893596,23.09109401,197.57,197.44,3.36]
[1735656893799,23.09109401,197.57,197.45,7.9863]
[1735656893994,2.5341,197.55,197.49,2.5349]
[1735656894187,23.09109401,197.57,197.49,2.5349]
[1735656894498,23.09109401,197.57,197.45,294.9863]
[1735656894797,2.5341,197.56,197.45,294.9863]
[1735656895295,19.73109401,197.57,197.5,2.5347]
[1735656895789,19.73109401,197.57,197.45,294.9863]
[1735656895790,21.06035437,197.71,197.45,294.9863]
[1735656895996,23.09109401,197.64,197.55,2.5341]
[1735656896193,23.09109401,197.64,197.5,3.36]
[1735656896597,3.36,197.63,197.5,3.36]
[1735656897393,3.36,197.63,197.54,2.5342]
[1735656897394,2.5336,197.6,197.54,2.5342]
[1735656897693,2.5336,197.6,197.5,3.36]
[1735656898495,2.5336,197.6,197.53,2.5344]
[1735656898695,2.5336,197.6,197.5,3.36]
[1735656899597,2.5336,197.6,197.53,2.5343]
[1735656900299,2.5332,197.62,197.5,3.36]
[1735656900597,19.73109401,197.64,197.5,290.36]
[1735656901193,2.5332,197.62,197.5,290.36]
[1735656901394,23.21109401,197.64,197.5,290.36]
[1735656903197,19.73109401,197.6,197.5,287.0]
[1735656903398,3.48,197.59,197.46,3.48]
[1735656903702,3.48,197.59,197.45,291.6263]
[1735656904203,19.73109401,197.57,197.45,291.6263]
[1735656904498,2.5341,197.55,197.49,2.5348]
[1735656905101,19.73109401,197.57,197.45,291.6263]
[1735656905304,22.26509401,197.57,197.51,2.5346]
[1735656905499,22.26509401,197.57,197.45,291.6263]
[1735656905500,19.73109401,197.57,197.45,291.6263]
[1735656905702,23.21109401,197.63,197.45,291.6263]
[1735656906104,23.21109401,197.63,197.47,19.73109401]
[1735656906404,23.21109401,197.63,197.58,2.5337]
[1735656907401,25.74419401,197.63,197.58,2.5337]
[1735656907796,23.21109401,197.63,197.54,3.1419]
[1735656908194,19.73109401,197.63,197.54,3.1419]
[1735656908594,2.5336,197.59,197.54,3.1419]
[1735656908801,2.5336,197.59,197.36,6.8869593]
[1735656908802,19.73109401,197.6,197.48,3.48]
[1735656909098,62.1172617,197.69,197.48,1.5588]
[1735656909099,19.73109401,197.57,197.48,1.5588]
[1735656909403,23.21109401,197.57,197.48,1.5588]
[1735656910407,2.5341,197.55,197.5,2.5347]
[1735656910805,23.21109401,197.57,197.48,1.5588]
[1735656911206,25.74509401,197.57,197.51,2.5346]
[1735656911705,2.534,197.56,197.51,2.5346]
[1735656912207,2.534,197.56,197.52,2.5345]
[1735656913505,62.1172617,197.69,197.48,1.5588]
[1735656913506,23.21109401,197.6,197.48,1.5588]
[1735656914101,2.5338,197.58,197.48,1.5588]
[1735656914707,2.5338,197.58,197.53,2.5343]
[1735656914901,2.5339,197.58,197.53,2.5343]
[1735656915107,19.73109401,197.57,197.48,1.5588]
[1735656915410,2.5347,197.51,197.45,1.5177]
[1735656915804,3.48,197.53,197.48,2.5349]
[1735656916004,6.0145,197.53,197.48,2.5349]
[1735656917008,3.48,197.53,197.48,2.5349]
[1735656917212,3.48,197.53,197.42,1.5622]
[1735656918311,2.535,197.49,197.45,2.5353]
[1735656918908,2.5348,197.5,197.47,2.5351]
[1735656919310,2.5348,197.5,197.42,1.5622]
[1735656919811,3.48,197.53,197.42,1.5622]
[1735656920009,2.5346,197.52,197.42,1.5622]
[1735656920710,6.0146,197.52,197.42,1.5622]
[1735656921513,6.0146,197.52,197.47,2.535]
[1735656921706,19.73109401,197.54,197.42,5.0422]
[1735656921911,19.73109401,197.61,197.44,19.73109401]
[1735656922109,3.48,197.6,197.44,306.73109401]
[1735656922918,19.73109401,197.64,197.47,19.73109401]
[1735656923114,23.21109401,197.64,197.48,3.48]
[1735656923416,19.73109401,197.67,197.5,306.73109401]
[1735656923609,3.48,197.69,197.53,306.73109401]
[1735656923808,3.48,197.69,197.54,3.48]
[1735656924012,2.5325,197.68,197.63,2.5331]
[1735656924512,6.0123,197.69,197.63,2.533]
[1735656925215,2.5326,197.67,197.63,2.533]
[1735656925417,2.5326,197.67,197.54,290.48]
[1735656925418,19.73109401,197.67,197.54,290.48]
[1735656926319,2.5333,197.62,197.54,290.48]
[1735656926512,23.21109401,197.64,197.55,2.534]
[1735656926718,19.73109401,197.61,197.51,1.5504]
[1735656928013,3.48,197.6,197.45,290.48]
[1735656928211,2.5341,197.56,197.45,290.48]
[1735656928416,5.0635,197.6,197.45,290.48]
[1735656928619,2.534,197.56,197.51,2.5345]
[1735656929018,19.73109401,197.58,197.51,2.5345]
[1735656929215,2.5341,197.55,197.5,2.5347]
[1735656930118,19.73109401,197.58,197.48,2.535]
[1735656930324,19.73109401,197.58,197.43,3.42]
[1735656930726,19.73109401,197.55,197.43,4.8944]
[1735656931126,3.42,197.57,197.43,4.8944]
[1735656931327,2.5342,197.55,197.43,4.8944]
[1735656932430,3.42,197.57,197.43,4.8944]
[1735656932632,2.5345,197.53,197.43,4.8944]
[1735656932833,19.73109401,197.55,197.47,2.5351]
[1735656933125,2.5348,197.5,197.43,1.4744]
[1735656933728,2.5348,197.5,197.45,2.5353]
[1735656934727,21.31459401,197.6,197.43,4.01]
[1735656934728,3.42,197.52,197.43,4.01]
[1735656934931,3.42,197.52,197.43,1.4744]
[1735656935329,19.73109401,197.56,197.43,1.4744]
[1735656935527,3.42,197.57,197.44,3.42]
[1735656936032,5.9539,197.57,197.44,290.42]
[1735656936230,3.42,197.57,197.44,290.42]
[1735656936430,2.5341,197.55,197.44,290.42]
[1735656936733,3.42,197.57,197.44,290.42]
[1735656936933,2.534,197.56,197.51,2.5345]
[1735656937233,2.534,197.56,197.44,290.42]
[1735656937234,19.73109401,197.62,197.45,19.73109401]
[1735656937533,2.5336,197.59,197.45,306.73109401]
[1735656938533,86.59732679,197.68,197.48,306.73109401]
[1735656938534,3.42,197.64,197.48,306.73109401]
[1735656938734,5.953,197.64,197.49,3.42]
[1735656939134,5.953,197.64,197.5,288.5724]
[1735656939335,2.5333,197.62,197.5,288.5724]
[1735656939536,2.5333,197.62,197.56,2.5339]
[1735656939834,3.42,197.64,197.51,288.493]
[1735656940036,3.42,197.64,197.52,1.5663]
[1735656940438,19.73109401,197.62,197.52,1.5663]
[1735656940731,3.42,197.64,197.52,1.5663]
[1735656941038,19.73109401,197.56,197.44,293.8869593]
[1735656941232,3.42,197.55,197.45,1.5663]
[1735656941736,2.5345,197.52,197.46,2.5352]
[1735656941936,3.42,197.55,197.45,1.5663]
[1735656942833,3.42,197.55,197.47,2.535]
[1735656942834,2.5345,197.52,197.47,2.535]
[1735656943534,2.5345,197.52,197.48,2.535]
[1735656944035,19.73109401,197.56,197.45,1.5663]
[1735656944235,23.15109401,197.56,197.48,2.5349]
[1735656944637,2.5345,197.52,197.48,2.5349]
[1735656944835,19.73109401,197.56,197.45,1.5663]
[1735656945039,2.5342,197.55,197.51,2.5346]
[1735656946435,19.73109401,197.56,197.52,2.5345]
[1735656946636,3.42,197.59,197.45,1.5663]
[1735656947437,2.5338,197.58,197.53,2.5343]
[1735656948137,2.5342,197.55,197.5,2.5347]
[1735656948845,2.5344,197.53,197.49,2.5349]
[1735656949035,2.5344,197.53,197.45,1.5663]
[1735656949236,3.42,197.58,197.45,1.5663]
[1735656949532,2.5343,197.54,197.45,1.5663]
[1735656951542,2.5343,197.54,197.5,2.5347]
[1735656952445,2.5345,197.52,197.47,2.535]
[1735656952744,19.73109401,197.56,197.45,1.5663]
[1735656952940,2.5344,197.53,197.46,2.5352]
[1735656953143,3.42,197.53,197.46,2.5352]
[1735656953844,3.42,197.53,197.47,2.5351]
[1735656954240,2.5347,197.51,197.47,2.5351]
[1735656954943,3.42,197.53,197.47,2.5351]
[1735656955142,2.5348,197.5,197.47,2.5351]
[1735656955947,2.5348,197.5,197.45,1.5663]
[1735656956148,2.5348,197.5,197.4,290.42]
[1735656956149,19.73109401,197.52,197.35,369.64351165]
[1735656956445,19.73109401,197.49,197.36,159.89333095]
[1735656956647,2.5354,197.45,197.41,2.5358]
[1735656958039,5.9551,197.48,197.44,2.5355]
[1735656958246,3.42,197.48,197.36,1.561]
[1735656958644,2.5352,197.47,197.43,2.5356]
[1735656959046,2.5352,197.47,197.43,2.5355]
[1735656960048,2.5353,197.46,197.43,2.5355]
[1735656960542,2.5355,197.45,197.36,1.561]
[1735656960747,3.42,197.48,197.36,1.561]
[1735656960938,3.42,197.48,197.44,2.5354]
[1735656961141,3.36,197.52,197.38,23.09109401]
[1735656961447,23.09109401,197.56,197.38,23.09109401]
[1735656961843,2.5346,197.52,197.48,2.5349]
[1735656962043,23.09109401,197.56,197.38,310.09109401]
[1735656962243,2.5346,197.51,197.47,2.5351]
[1735656962444,23.09109401,197.56,197.38,310.09109401]
[1735656962942,2.5349,197.5,197.45,2.5353]
[1735656963138,23.09109401,197.56,197.45,2.5353]
[1735656963946,23.09109401,197.56,197.47,2.535]
[1735656964150,23.09109401,197.56,197.39,290.71376625]
[1735656964445,19.73109401,197.52,197.4,2.536]
[1735656964648,19.73109401,197.48,197.4,2.536]
[1735656964844,2.5356,197.44,197.38,27.54783721]
[1735656965147,2.5356,197.44,197.41,2.5359]
[1735656965642,2.5354,197.45,197.42,2.5358]
[1735656965949,3.36,197.47,197.36,1.561]
[1735656966149,2.5356,197.44,197.36,1.561]
[1735656966643,3.36,197.47,197.36,1.561]
[1735656967245,2.5359,197.42,197.38,2.5362]
[1735656967543,3.36,197.47,197.36,1.561]
[1735656967744,19.73109401,197.44,197.34,1.5944]
[1735656968144,2.5364,197.38,197.34,2.5367]
[1735656968552,2.5364,197.38,197.31,1.5804]
[1735656968752,2.5364,197.38,197.35,2.5366]
[1735656969850,2.5362,197.39,197.35,2.5366]
[1735656970853,3.36,197.4,197.31,1.5804]
[1735656971043,3.36,197.44,197.31,1.5804]
[1735656971243,3.36,197.44,197.32,3.36]
[1735656971450,3.36,197.44,197.32,290.36]
[1735656972154,3.36,197.44,197.4,2.5359]
[1735656972543,2.5354,197.45,197.4,2.5359]
[1735656973449,3.36,197.46,197.32,290.36]
[1735656973847,2.5363,197.38,197.35,2.5367]
[1735656974155,2.5363,197.38,197.31,1.5804]
[1735656974156,3.36,197.4,197.31,1.5804]
[1735656974457,2.5364,197.37,197.33,2.5369]
[1735656975251,2.5361,197.4,197.36,2.5365]
[1735656975954,2.5359,197.41,197.37,2.5363]
[1735656976157,2.5359,197.41,197.31,1.5804]
[1735656976447,3.36,197.44,197.41,2.5358]
[1735656976653,3.36,197.45,197.31,291.9404]
[1735656976855,19.73109401,197.46,197.31,291.9404]
[1735656977052,3.36,197.46,197.33,306.73109401]
[1735656977646,19.73109401,197.5,197.33,306.73109401]
[1735656977851,3.36,197.5,197.36,306.73109401]
[1735656978155,3.36,197.5,197.47,2.5351]
[1735656978650,3.36,197.5,197.37,293.4122]
[1735656978959,3.36,197.54,197.4,19.73109401]
[1735656979152,3.36,197.54,197.41,1.5853]
[1735656979455,3.36,197.54,197.42,3.36]
[1735656979757,3.36,197.56,197.42,290.36]
[1735656979957,87.04243474,197.57,197.42,290.36]
[1735656980151,3.36,197.56,197.42,290.36]
[1735656981154,2.5343,197.54,197.49,2.5349]
[1735656981354,3.36,197.56,197.42,290.36]
[1735656981655,2.5342,197.55,197.49,2.5348]
[1735656981846,19.73109401,197.57,197.42,290.36]
[1735656982255,22.26509401,197.57,197.52,2.5344]
[1735656982459,3.36,197.58,197.47,3.36]
[1735656982657,3.36,197.58,197.48,3.2263]
[1735656983152,2.534,197.57,197.51,2.5346]
[1735656983752,2.5344,197.53,197.49,2.5349]
[1735656984454,2.5346,197.52,197.47,2.5351]
[1735656984957,3.36,197.53,197.49,2.5349]
[1735656985158,3.36,197.53,197.43,1.4822]
[1735656985662,2.535,197.48,197.43,4.0178]
[1735656986951,23.09109401,197.53,197.44,2.5355]
[1735656987148,23.09109401,197.53,197.43,1.4822]
[1735656987348,3.36,197.53,197.43,1.4822]
[1735656987854,3.36,197.55,197.43,1.4822]
[1735656988053,3.36,197.55,197.43,4.8422]
[1735656988257,5.8942,197.55,197.5,2.5347]
[1735656988451,3.36,197.55,197.43,4.8422]
[1735656988954,5.8941,197.55,197.43,4.8422]
[1735656989154,3.36,197.55,197.43,4.8422]
[1735656989560,3.36,197.55,197.51,2.5345]
[1735656990173,3.36,197.55,197.43,4.8422]
[1735656990454,3.36,197.55,197.43,291.8422]
[1735656990759,2.5343,197.54,197.5,2.5348]
[1735656992259,5.8941,197.55,197.51,2.5346]
[1735656992860,2.5339,197.57,197.43,291.8422]
[1735656993063,3.36,197.59,197.46,306.73109401]
[1735656993361,2.5335,197.61,197.56,2.5339]
[1735656993554,3.36,197.62,197.56,2.5339]
[1735656993759,3.36,197.62,197.49,290.36]
[1735656993955,2.5334,197.61,197.57,2.5339]
[1735656994363,3.36,197.62,197.51,1.5427]
[1735656994563,2.5337,197.59,197.51,1.5427]
[1735656995263,2.5336,197.6,197.51,1.5427]
[1735656995667,3.36,197.62,197.51,1.5427]
[1735656995865,2.5336,197.59,197.55,2.534]
[1735656996967,3.36,197.62,197.51,1.5427]
[1735656997165,2.5338,197.58,197.54,2.5342]
[1735656997559,3.36,197.62,197.51,1.5427]
[1735656997864,19.73109401,197.59,197.51,1.5427]
[1735656998666,19.73109401,197.59,197.52,2.5344]
[1735656999266,2.5341,197.55,197.52,2.5344]
[1735657000464,2.5343,197.54,197.5,4.0973]
[1735657000965,2.5343,197.54,197.5,1.5626]
[1735657001563,3.36,197.57,197.5,4.0973]
[1735657001863,19.73109401,197.55,197.42,3.0585]
[1735657002065,19.73109401,197.55,197.43,2.5357]
[1735657002265,2.5352,197.47,197.42,4.554]
[1735657002767,2.5348,197.5,197.46,2.5352]
[1735657003162,3.36,197.51,197.46,2.5352]
[1735657003368,2.5348,197.5,197.42,4.554]
[1735657003970,5.8947,197.51,197.47,2.5351]
[1735657004462,2.5344,197.53,197.49,2.5348]
[1735657004659,3.36,197.58,197.44,3.36]
[1735657005057,2.534,197.56,197.52,2.5344]
[1735657005263,2.534,197.56,197.44,290.36]
[1735657005664,2.534,197.56,197.52,2.5344]
[1735657005868,2.5344,197.53,197.44,290.36]
[1735657006171,3.36,197.53,197.44,290.36]
[1735657006867,2.5349,197.49,197.45,2.5353]
[1735657007368,3.36,197.53,197.45,2.5353]
[1735657007761,3.36,197.53,197.43,2.5355]
[1735657007762,2.5352,197.47,197.43,2.5355]
[1735657008468,2.5352,197.47,197.44,2.5355]
[1735657008771,19.73109401,197.52,197.42,3.0284]
[1735657008970,19.73109401,197.52,197.43,2.5356]
[1735657009172,19.73109401,197.49,197.42,1.4955]
[1735657009370,2.5355,197.44,197.37,1.4608]
[1735657009671,3.36,197.48,197.41,2.5359]
[1735657009973,3.36,197.48,197.37,1.4608]
[1735657010474,19.73109401,197.45,197.35,3.0211]
[1735657010673,19.73109401,197.45,197.35,1.5153]
[1735657010873,19.73109401,197.42,197.35,1.5153]
[1735657011169,3.36,197.41,197.35,1.5153]
[1735657011566,2.5362,197.39,197.35,1.5153]
[1735657012171,5.8959,197.41,197.37,2.5363]
[1735657012369,3.36,197.41,197.37,2.5363]
[1735657012867,3.36,197.41,197.38,2.5363]
[1735657013072,3.36,197.41,197.35,1.5153]
[1735657013273,3.36,197.45,197.35,1.5153]
[1735657013673,2.5355,197.44,197.4,2.536]
[1735657014570,3.36,197.45,197.35,1.5153]
[1735657014975,3.36,197.45,197.36,3.36]
[1735657015575,3.36,197.45,197.42,2.5358]
[1735657015870,3.36,197.45,197.36,3.36]
[1735657016671,2.5359,197.42,197.35,1.5153]
[1735657017076,3.36,197.45,197.35,1.5153]
[1735657017272,2.5362,197.4,197.35,4.052]
[1735657017474,2.5362,197.4,197.35,1.5153]
[1735657017771,3.36,197.45,197.35,1.5153]
[1735657017972,2.5358,197.42,197.36,2.5365]
[1735657018276,3.36,197.45,197.35,1.5153]
[1735657018477,2.5358,197.42,197.38,2.5362]
[1735657018673,3.36,197.45,197.35,1.5153]
[1735657019472,19.73109401,197.43,197.33,287.0]
[1735657019672,2.5364,197.38,197.34,2.5368]
[1735657021377,3.36,197.4,197.31,81.81883744]
[1735657021577,19.73109401,197.47,197.32,3.36]
[1735657021976,2.5354,197.45,197.42,2.5357]
[1735657022279,19.73109401,197.47,197.34,3.36]
[1735657022482,2.5358,197.43,197.34,3.36]
[1735657022876,2.5355,197.44,197.4,2.5359]
[1735657023384,3.36,197.46,197.34,3.36]
[1735657024084,2.5357,197.43,197.39,2.5361]
[1735657026880,15.6981218,197.49,197.36,12.3381218]
[1735657027384,3.36,197.48,197.36,12.3381218]
[1735657027781,12.3381218,197.46,197.34,3.36]
[1735657027978,2.5363,197.39,197.35,2.5367]
[1735657028381,12.3381218,197.43,197.31,109.71300162]
[1735657028582,12.3381218,197.43,197.31,81.81883744]
[1735657028985,3.36,197.44,197.31,81.81883744]
[1735657029184,12.3381218,197.46,197.33,12.3381218]
[1735657029387,3.36,197.45,197.33,12.3381218]
[1735657029589,3.36,197.45,197.36,12.3381218]
[1735657029784,12.3381218,197.49,197.36,15.6981218]
[1735657029982,3.36,197.48,197.36,15.6981218]
[1735657030179,2.5352,197.47,197.44,2.5355]
[1735657030481,2.5352,197.47,197.36,15.6981218]
[1735657030999,2.535,197.49,197.39,12.3381218]
[1735657031183,2.535,197.49,197.4,4.5888]
[1735657031378,2.535,197.49,197.44,2.5354]
[1735657031587,5.8948,197.5,197.4,4.5888]
[1735657031884,3.36,197.5,197.4,4.5888]
[1735657032184,2.5349,197.49,197.45,2.5353]
[1735657032391,3.36,197.5,197.4,4.5888]
[1735657032583,2.5354,197.45,197.42,2.5358]
[1735657033288,2.5354,197.45,197.41,2.5359]
[1735657033485,2.5354,197.45,197.4,4.5888]
[1735657033687,2.5353,197.46,197.4,4.5888]
[1735657033887,3.36,197.48,197.41,2.5359]
[1735657034090,3.36,197.48,197.4,4.5888]
[1735657034091,12.3381218,197.46,197.4,1.4694]
[1735657034283,2.5355,197.45,197.4,1.4694]
[1735657034589,12.3381218,197.46,197.4,1.4694]
[1735657035491,2.5357,197.43,197.4,1.4694]
[1735657035990,2.5355,197.45,197.4,1.4694]
[1735657036185,12.3381218,197.46,197.4,1.4694]
[1735657036892,3.36,197.48,197.4,1.4694]
[1735657037389,2.5354,197.46,197.4,1.4694]
[1735657037591,2.5354,197.46,197.42,2.5357]
[1735657037991,2.5354,197.46,197.43,2.5357]
[1735657038489,2.5352,197.47,197.4,1.4694]
[1735657038689,2.5352,197.47,197.44,2.5355]